bitfinex-derivatives/quotes_SOLF0:USTF0_20250312
["timestamp","ask_amount","ask_price","bid_price","bid_amount"]
[1741800010950,25.01524461,125.69,125.61,33.5]
[1741800011136,3.1947,125.69,125.62,32.92361868]
[1741800011446,7.9595,125.66,125.62,32.92361868]
[1741800011643,7.9595,125.66,125.63,7.9609]
[1741800011850,7.9595,125.66,125.64,33.55522268]
[1741800012044,0.05639789,125.67,125.64,0.05522268]
[1741800012247,3.1947,125.69,125.61,33.5]
[1741800012543,7.9603,125.65,125.64,0.05829283]
[1741800012742,0.05537638,125.67,125.64,0.05829283]
[1741800012945,7.9599,125.66,125.64,0.05829283]
[1741800013547,8.01447638,125.67,125.64,0.05829283]
[1741800013743,0.05537638,125.67,125.64,0.05829283]
[1741800014150,7.96,125.66,125.64,0.05829283]
[1741800014746,0.05537638,125.67,125.64,0.05829283]
[1741800015049,7.96,125.65,125.64,0.05829283]
[1741800015251,0.05537638,125.67,125.64,0.05829283]
[1741800015650,0.05537638,125.67,125.64,8.01889283]
[1741800016053,0.05537638,125.67,125.65,7.9598]
[1741800016446,0.05537638,125.67,125.64,0.05829283]
[1741800016651,8.01447638,125.67,125.64,8.01869283]
[1741800016851,0.05537638,125.67,125.64,8.01869283]
[1741800017947,0.05537638,125.67,125.65,7.9595]
[1741800018147,0.05537638,125.67,125.64,0.05829283]
[1741800018354,0.05537638,125.67,125.64,3.20889283]
[1741800018849,3.2283,125.73,125.64,36.13251151]
[1741800019054,3.2283,125.73,125.64,39.10571868]
[1741800019244,7.9578,125.69,125.64,39.10571868]
[1741800019646,36.15191868,125.73,125.64,6.1821]
[1741800019855,7.9585,125.68,125.64,11.1108]
[1741800020155,33.48,125.75,125.67,0.05962253]
[1741800020356,3.2283,125.74,125.66,33.48]
[1741800020550,0.05081278,125.72,125.7,0.05401496]
[1741800020852,7.9562,125.71,125.7,0.05401496]
[1741800021356,0.05081278,125.72,125.7,0.05401496]
[1741800022154,7.9562,125.71,125.7,0.05401496]
[1741800023148,8.00661278,125.72,125.7,0.05401496]
[1741800023349,0.05081278,125.72,125.7,0.05401496]
[1741800025252,42.7664,125.8,125.7,3.09181496]
[1741800025452,42.7664,125.8,125.7,3.0378]
[1741800025655,7.9541,125.75,125.7,3.0378]
[1741800025857,42.7664,125.8,125.7,3.0378]
[1741800026247,7.9541,125.75,125.7,3.0378]
[1741800026452,7.9541,125.75,125.74,0.05221293]
[1741800026760,0.05575286,125.76,125.73,0.05337111]
[1741800027353,7.9521,125.78,125.73,0.05337111]
[1741800027658,3.1051,125.8,125.73,3.16357111]
[1741800027955,7.9541,125.75,125.74,33.46]
[1741800028458,7.97558537,125.76,125.74,33.46]
[1741800028653,0.02218537,125.76,125.74,33.46]
[1741800028853,0.02218537,125.76,125.74,33.51354349]
[1741800029054,7.9537,125.75,125.74,33.51354349]
[1741800029254,0.02218537,125.76,125.74,33.51354349]
[1741800030058,7.97558537,125.76,125.74,33.51354349]
[1741800030560,0.02218537,125.76,125.74,33.51354349]
[1741800032458,7.9512,125.79,125.74,33.51354349]
[1741800032658,7.9512,125.79,125.74,33.46]
[1741800033057,7.9512,125.79,125.74,41.4141]
[1741800033255,7.9512,125.79,125.74,33.46]
[1741800033654,7.9508,125.8,125.75,0.05798939]
[1741800033861,3.0685,125.82,125.75,0.05798939]
[1741800034761,7.9502,125.81,125.76,7.953]
[1741800034961,15.8888,125.9,125.77,33.44]
[1741800035159,15.8888,125.9,125.77,33.4906919]
[1741800035160,3.1199,125.87,125.77,33.4906919]
[1741800035459,3.1199,125.87,125.78,7.9515]
[1741800035663,3.1199,125.87,125.81,0.06068738]
[1741800035851,7.949,125.83,125.81,0.06068738]
[1741800036057,32.92361868,125.86,125.81,0.06068738]
[1741800036957,7.949,125.83,125.81,0.06068738]
[1741800037157,32.92361868,125.86,125.81,0.06068738]
[1741800037461,7.9492,125.82,125.81,0.06068738]
[1741800038661,32.92361868,125.86,125.81,0.06068738]
[1741800038863,3.1199,125.87,125.81,0.06068738]
[1741800039063,7.9487,125.83,125.81,0.06068738]
[1741800039264,3.1199,125.87,125.81,0.06068738]
[1741800041370,7.949,125.83,125.81,0.06068738]
[1741800041571,3.1199,125.87,125.81,0.06068738]
[1741800042378,7.9492,125.83,125.81,0.06068738]
[1741800042778,3.1199,125.87,125.81,0.06068738]
[1741800043073,7.9492,125.82,125.81,0.06068738]
[1741800044679,27.06458782,125.84,125.76,7.9529]
[1741800044680,7.9507,125.8,125.76,7.9529]
[1741800045273,27.06458782,125.84,125.77,7.9521]
[1741800045274,7.9504,125.81,125.77,7.9521]
[1741800045475,27.06458782,125.84,125.77,7.9521]
[1741800045670,27.06458782,125.84,125.75,53.90308782]
[1741800045874,7.9505,125.8,125.79,0.05800765]
[1741800046782,20.48308782,125.8,125.73,238.52]
[1741800047077,20.48308782,125.78,125.73,271.94]
[1741800047282,20.48308782,125.76,125.67,259.00308782]
[1741800047480,7.9561,125.72,125.68,33.42]
[1741800047979,0.05952462,125.71,125.69,0.05129456]
[1741800048373,7.9538,125.75,125.69,0.05129456]
[1741800048580,0.05279868,125.71,125.69,0.05129456]
[1741800048880,6.262,125.77,125.69,8.01078729]
[1741800049078,0.0523804,125.71,125.68,33.42]
[1741800049279,7.954,125.75,125.7,7.9566]
[1741800049480,7.954,125.75,125.72,0.05318373]
[1741800049681,0.05488643,125.74,125.72,0.05318373]
[1741800049881,7.9549,125.73,125.72,0.05318373]
[1741800050682,0.05488643,125.74,125.67,238.52]
[1741800050884,32.81050917,125.74,125.67,238.52]
[1741800051079,6.2491,125.73,125.67,238.52]
[1741800051281,7.9581,125.68,125.67,238.52]
[1741800051488,39.6891,125.73,125.67,238.52]
[1741800051875,0.0590708,125.71,125.62,3.0737]
[1741800052084,32.81050917,125.72,125.64,33.44]
[1741800052279,7.9595,125.66,125.63,33.44]
[1741800052974,66.25050917,125.7,125.6,121.37676066]
[1741800053179,0.05625652,125.66,125.63,0.05171761]
[1741800053684,7.9606,125.64,125.63,0.05171761]
[1741800054279,0.05625652,125.66,125.59,33.44]
[1741800054584,39.857,125.67,125.59,33.44]
[1741800054782,7.9604,125.65,125.59,33.44]
[1741800055484,0.05989511,125.63,125.61,0.05868042]
[1741800056183,0.05989511,125.63,125.62,7.9619]
[1741800057186,33.44,125.71,125.62,66.25050917]
[1741800057381,7.9605,125.65,125.62,33.44]
[1741800057587,32.81050917,125.69,125.62,33.44]
[1741800057888,32.81050917,125.69,125.6,7.9628]
[1741800058086,7.961,125.64,125.6,7.9628]
[1741800058384,0.05575345,125.66,125.63,0.05558201]
[1741800058584,33.44,125.67,125.63,0.05558201]
[1741800058782,0.05183439,125.66,125.62,32.81050917]
[1741800058977,0.05183439,125.66,125.64,0.05160832]
[1741800059187,8.01713015,125.65,125.6,33.46]
[1741800059489,0.05713015,125.65,125.58,238.62]
[1741800059680,7.9622,125.62,125.58,238.62]
[1741800059885,6.3132,125.65,125.58,238.62]
[1741800060087,36.4649,125.69,125.59,32.81050917]
[1741800060279,3.236,125.68,125.61,32.81050917]
[1741800060478,3.236,125.68,125.64,7.9603]
[1741800060784,0.05128953,125.66,125.63,32.86552842]
[1741800060986,0.05128953,125.66,125.64,7.9601]
[1741800061185,0.05128953,125.66,125.63,32.86552842]
[1741800061389,0.05128953,125.66,125.64,7.9606]
[1741800061785,0.05128953,125.66,125.63,32.86552842]
[1741800062088,0.05128953,125.66,125.64,7.9606]
[1741800062391,0.05128953,125.66,125.63,32.86552842]
[1741800063184,0.05128953,125.66,125.63,35.88122842]
[1741800063386,6.2125,125.71,125.65,32.81050917]
[1741800063588,6.2125,125.71,125.66,33.46]
[1741800063789,7.9573,125.7,125.66,33.46]
[1741800063989,6.2125,125.71,125.66,33.46]
[1741800064183,7.9571,125.7,125.66,33.46]
[1741800064388,6.2125,125.71,125.66,33.46]
[1741800064389,6.2125,125.71,125.66,41.4192]
[1741800064592,0.05877182,125.69,125.67,0.05520453]
[1741800064890,8.01637182,125.69,125.67,0.05520453]
[1741800065202,0.05877182,125.69,125.67,0.05520453]
[1741800066393,0.05877182,125.69,125.67,8.01360453]
[1741800066690,0.05877182,125.69,125.67,0.05520453]
[1741800068399,0.05877182,125.69,125.67,8.01380453]
[1741800069102,7.9581,125.68,125.67,0.05520453]
[1741800069298,0.05877182,125.69,125.67,0.05520453]
[1741800072006,0.05877182,125.69,125.6,6.2]
[1741800072198,32.81050917,125.71,125.61,33.46]
[1741800072397,3.1552,125.7,125.61,33.46]
[1741800072797,3.1552,125.7,125.6,6.2]
[1741800073099,0.054082,125.66,125.64,0.05062806]
[1741800074508,7.96,125.65,125.64,0.05062806]
[1741800075207,0.054082,125.66,125.64,0.05062806]
[1741800076006,7.96,125.65,125.64,0.05062806]
[1741800076402,7.96,125.65,125.51,121.46986621]
[1741800076699,6.3205,125.64,125.52,71.02113514]
[1741800077004,7.9648,125.58,125.53,1.44252597]
[1741800077207,7.9648,125.58,125.54,7.9668]
[1741800077607,0.05835016,125.57,125.55,0.05939955]
[1741800078308,0.05835016,125.57,125.55,20.60651718]
[1741800079400,0.05835016,125.57,125.56,7.9657]
[1741800079805,0.05835016,125.57,125.55,20.60651718]
[1741800080203,0.05835016,125.57,125.55,0.05939955]
[1741800081813,0.05835016,125.57,125.56,7.9657]
[1741800082106,0.05835016,125.57,125.55,0.05939955]
[1741800084511,7.9657,125.56,125.55,0.05939955]
[1741800084710,0.05835016,125.57,125.55,0.05939955]
[1741800086317,0.05835016,125.57,125.55,8.02539955]
[1741800086506,0.05835016,125.57,125.55,0.05939955]
[1741800087603,7.9657,125.56,125.55,0.05939955]
[1741800087804,0.05835016,125.57,125.55,0.05939955]
[1741800088210,8.02385016,125.57,125.55,0.05939955]
[1741800088611,7.9657,125.56,125.55,0.05939955]
[1741800088802,0.05835016,125.57,125.55,0.05939955]
[1741800089316,7.9657,125.56,125.55,0.05939955]
[1741800089515,0.05835016,125.57,125.55,0.05939955]
[1741800089917,7.9657,125.56,125.55,0.05939955]
[1741800090311,0.05835016,125.57,125.55,0.05939955]
[1741800090516,8.02375016,125.57,125.55,0.05939955]
[1741800091414,0.05835016,125.57,125.55,0.05939955]
[1741800092017,8.02405016,125.57,125.55,0.05939955]
[1741800092217,0.05835016,125.57,125.55,0.05939955]
[1741800093817,0.05835016,125.57,125.55,8.02539955]
[1741800094819,6.1827,125.62,125.55,32.93730738]
[1741800095025,4.43672536,125.61,125.55,0.05939955]
[1741800095219,7.9647,125.58,125.55,8.02539955]
[1741800095420,6.1827,125.62,125.55,0.05939955]
[1741800095626,4.43891687,125.61,125.55,0.05939955]
[1741800095819,7.9638,125.59,125.56,7.9653]
[1741800096019,8.01515944,125.59,125.56,7.9653]
[1741800096218,0.05135944,125.59,125.55,0.05939955]
[1741800097027,8.01525944,125.59,125.56,7.9651]
[1741800097222,0.05135944,125.59,125.56,7.9651]
[1741800097419,0.05135944,125.59,125.55,0.05939955]
[1741800097626,0.05135944,125.59,125.57,7.9647]
[1741800097827,0.05135944,125.59,125.55,0.05939955]
[1741800098329,8.01545944,125.59,125.56,7.9654]
[1741800098529,0.05135944,125.59,125.55,0.05939955]
[1741800098728,0.05135944,125.59,125.57,7.9649]
[1741800099029,0.05135944,125.59,125.55,33.53939955]
[1741800099423,7.9647,125.58,125.55,33.53939955]
[1741800100123,8.01545944,125.59,125.56,7.9654]
[1741800100331,0.05135944,125.59,125.55,33.53939955]
[1741800100725,0.05135944,125.59,125.56,7.9654]
[1741800100927,0.05135944,125.59,125.55,33.53939955]
[1741800101228,7.9654,125.57,125.55,33.53939955]
[1741800101431,7.9654,125.57,125.55,0.05939955]
[1741800101925,6.4062,125.64,125.55,0.05939955]
[1741800101926,3.2533,125.64,125.55,0.05939955]
[1741800102229,3.1126,125.68,125.61,20.52928675]
[1741800102526,4.43851502,125.65,125.59,56.36928675]
[1741800102727,4.43851502,125.65,125.59,20.52928675]
[1741800103130,0.06042877,125.63,125.61,0.05641681]
[1741800104125,0.06042877,125.63,125.61,20.58570356]
[1741800104524,0.06042877,125.63,125.62,7.9619]
[1741800104828,3.2881,125.66,125.61,20.58570356]
[1741800105027,3.2881,125.66,125.64,20.52928675]
[1741800106123,3.34612457,125.66,125.64,20.58859526]
[1741800106626,0.05802457,125.66,125.64,20.58859526]
[1741800106829,46.29143069,125.73,125.64,41.11788201]
[1741800107129,12.54723069,125.72,125.67,28.48798675]
[1741800107429,4.59133069,125.71,125.67,28.48798675]
[1741800107628,4.59133069,125.71,125.67,20.52928675]
[1741800107828,13.9954,125.73,125.68,7.9576]
[1741800108032,0.05466375,125.7,125.68,8.01664922]
[1741800108331,0.05466375,125.7,125.68,0.05904922]
[1741800108531,4.59013508,125.69,125.62,56.20928675]
[1741800108732,4.59013508,125.69,125.65,7.9596]
[1741800109033,6.0401,125.73,125.66,20.52928675]
[1741800109229,4.59012961,125.72,125.66,20.52928675]
[1741800109432,4.59012961,125.71,125.66,20.52928675]
[1741800109633,0.05068935,125.7,125.68,0.05813879]
[1741800110231,4.64129852,125.7,125.68,0.05813879]
[1741800110431,12.59819852,125.7,125.68,0.05813879]
[1741800110631,8.00758935,125.7,125.68,0.05813879]
[1741800111936,0.05068935,125.7,125.68,0.05813879]
[1741800112132,0.05068935,125.7,125.68,20.58742554]
[1741800115641,7.9575,125.69,125.68,0.05813879]
[1741800115943,4.59024378,125.69,125.6,3.2962]
[1741800116243,63.8799761,125.7,125.59,262.63538675]
[1741800116244,28.18193053,125.68,125.59,259.40928675]
[1741800116544,4.59024378,125.67,125.59,294.82928675]
[1741800116844,4.59024378,125.66,125.61,20.52928675]
[1741800117033,0.05489359,125.64,125.62,0.05418444]
[1741800117237,7.9613,125.63,125.62,0.05418444]
[1741800117937,7.9645,125.58,125.55,119.66820221]
[1741800118631,7.9641,125.59,125.55,119.66820221]
[1741800118839,35.58,125.66,125.55,140.19748896]
[1741800119033,7.9637,125.6,125.56,20.58663773]
[1741800119245,7.9637,125.6,125.56,20.52928675]
[1741800119444,7.9637,125.6,125.57,0.05565854]
[1741800119638,0.05460226,125.59,125.57,0.05565854]
[1741800120240,8.01860226,125.59,125.57,0.05565854]
[1741800120844,7.9644,125.58,125.57,0.05565854]
[1741800121245,0.05460226,125.59,125.57,0.05565854]
[1741800122145,0.05460226,125.59,125.58,20.52928675]
[1741800122355,4.46107887,125.65,125.58,20.52928675]
[1741800122545,12.42207887,125.64,125.59,35.48]
[1741800122849,20.52928675,125.68,125.6,20.52928675]
[1741800123045,4.46060851,125.66,125.6,20.52928675]
[1741800123237,6.0281,125.67,125.6,20.52928675]
[1741800123441,8.0124676,125.64,125.62,0.05560765]
[1741800123641,0.0517676,125.64,125.62,0.05560765]
[1741800123845,0.0517676,125.64,125.63,35.54]
[1741800124048,2.9977,125.67,125.63,35.54]
[1741800124848,3.0449,125.69,125.63,35.54]
[1741800125046,0.05605771,125.66,125.63,35.54]
[1741800125246,0.05605771,125.66,125.65,0.05062667]
[1741800126051,10.953,125.71,125.65,0.05062667]
[1741800126246,20.52928675,125.76,125.68,20.52928675]
[1741800126444,3.0274,125.77,125.69,43.4169]
[1741800126641,4.45355991,125.76,125.69,43.4169]
[1741800126946,7.9551,125.73,125.69,43.4169]
[1741800127143,3.0274,125.77,125.69,35.46]
[1741800127342,0.05695646,125.72,125.7,0.05183943]
[1741800127549,4.4532952,125.76,125.7,0.05183943]
[1741800127743,0.05518025,125.72,125.7,0.05183943]
[1741800128352,0.05518025,125.72,125.66,35.36]
[1741800128540,3.21808025,125.72,125.66,35.36]
[1741800128744,7.9579,125.69,125.64,7.9603]
[1741800128940,7.9579,125.69,125.64,43.3003]
[1741800129149,3.1629,125.72,125.64,35.34]
[1741800129349,4.45154332,125.71,125.64,35.34]
[1741800129552,8.01327625,125.69,125.67,0.05376261]
[1741800129753,0.05577625,125.69,125.67,0.05376261]
[1741800130054,7.9581,125.68,125.67,0.05376261]
[1741800130349,0.05577625,125.69,125.67,0.05376261]
[1741800130755,8.01357625,125.69,125.67,0.05376261]
[1741800131056,0.05577625,125.69,125.67,0.05376261]
[1741800131858,8.01357625,125.69,125.67,0.05376261]
[1741800132045,0.05577625,125.69,125.67,0.05376261]
[1741800132954,7.9581,125.68,125.67,0.05376261]
[1741800133956,0.05577625,125.69,125.67,0.05376261]
[1741800134455,0.05577625,125.69,125.68,75.95006083]
[1741800134653,4.45289113,125.75,125.68,75.95006083]
[1741800135356,4.45289113,125.75,125.68,67.99196083]
[1741800135859,0.05842913,125.73,125.71,7.9562]
[1741800136255,0.05842913,125.73,125.72,35.1]
[1741800136461,26.94501023,125.81,125.72,67.93196083]
[1741800136659,4.45073887,125.8,125.72,35.1]
[1741800137562,7.99970699,125.77,125.75,0.05381695]
[1741800137758,0.04690699,125.77,125.75,0.05381695]
[1741800138959,0.04690699,125.77,125.75,42.98711695]
[1741800139157,0.04690699,125.77,125.75,35.03381695]
[1741800139755,0.04690699,125.77,125.75,0.05381695]
[1741800141465,0.04690699,125.77,125.75,8.00711695]
[1741800141865,0.04690699,125.77,125.75,0.05381695]
[1741800143065,0.04690699,125.77,125.75,8.00741695]
[1741800144061,0.04690699,125.77,125.76,42.893]
[1741800144266,3.1259,125.81,125.76,34.94]
[1741800144869,3.1259,125.81,125.77,7.952]
[1741800145467,11.0762,125.81,125.78,8.00231422]
[1741800146262,3.3068,125.84,125.78,0.05071422]
[1741800146468,32.83196083,125.82,125.78,0.05071422]
[1741800146768,7.9511,125.79,125.78,0.05071422]
[1741800147068,32.83196083,125.82,125.78,0.05071422]
[1741800147469,32.83196083,125.8,125.72,34.86]
[1741800147669,32.83196083,125.76,125.69,238.76]
[1741800147871,3.0773,125.75,125.69,238.76]
[1741800148264,32.83196083,125.8,125.69,238.76]
[1741800148471,7.9529,125.77,125.69,238.76]
[1741800148667,0.05071422,125.76,125.73,0.06047587]
[1741800148871,0.05071422,125.76,125.73,35.00047587]
[1741800149671,0.05071422,125.76,125.74,7.954]
[1741800149974,0.05071422,125.76,125.73,35.00047587]
[1741800150272,6.2886,125.83,125.73,35.00047587]
[1741800150474,6.2886,125.83,125.73,34.94]
[1741800150775,7.9508,125.8,125.76,7.9527]
[1741800150969,7.9508,125.8,125.77,34.86]
[1741800151170,7.9518,125.78,125.77,34.86]
[1741800151368,32.83196083,125.81,125.77,34.92102812]
[1741800151672,39.12056083,125.83,125.77,34.92102812]
[1741800151875,7.9508,125.8,125.77,34.92102812]
[1741800152373,7.9502,125.81,125.77,42.87332812]
[1741800152773,7.9494,125.82,125.78,7.9513]
[1741800152970,7.9494,125.82,125.77,34.92102812]
[1741800152971,3.1393,125.83,125.77,34.92102812]
[1741800153177,3.0706,125.87,125.77,34.92102812]
[1741800153476,38.98446083,125.87,125.78,11.1097]
[1741800153769,38.98446083,125.87,125.81,0.05629994]
[1741800153975,7.9492,125.82,125.81,0.05629994]
[1741800154876,7.9483,125.84,125.81,0.05629994]
[1741800156670,38.98446083,125.87,125.81,0.05629994]
[1741800156870,32.83196083,125.85,125.81,0.05629994]
[1741800158373,7.9492,125.82,125.81,0.05629994]
[1741800161178,6.1525,125.87,125.81,0.05629994]
[1741800161481,26.63044589,125.87,125.81,0.05629994]
[1741800161884,7.9485,125.84,125.81,0.05629994]
[1741800162071,26.63044589,125.87,125.81,0.05629994]
[1741800162276,6.1525,125.87,125.81,0.05629994]
[1741800162580,26.63044589,125.87,125.81,0.05629994]
[1741800162975,6.1525,125.87,125.81,20.53424583]
[1741800163176,6.1525,125.87,125.81,0.05629994]
[1741800163377,20.47794589,125.86,125.81,0.05629994]
[1741800164182,120.79749132,125.97,125.85,20.47794589]
[1741800164383,23.55424589,125.96,125.87,20.47794589]
[1741800164580,23.55424589,125.96,125.9,0.05102452]
[1741800164581,28.41984589,125.94,125.9,0.05102452]
[1741800165177,40.95589178,125.91,125.73,20.47794589]
[1741800165473,20.47794589,125.85,125.77,23.63174589]
[1741800165673,20.47794589,125.85,125.78,35.78]
[1741800165872,28.42464589,125.87,125.78,35.78]
[1741800166182,0.05030155,125.84,125.81,0.05423901]
[1741800166685,0.05030155,125.84,125.82,35.78]
[1741800171178,0.05030155,125.84,125.81,0.05423901]
[1741800171584,6.04780155,125.84,125.81,0.05423901]
[1741800171887,32.75710882,125.83,125.81,0.05423901]
[1741800172083,3.1349,125.83,125.81,0.05423901]
[1741800172784,7.9492,125.82,125.81,0.05423901]
[1741800173185,35.89200882,125.83,125.76,238.48]
[1741800173482,7.9515,125.79,125.76,238.48]
[1741800174184,0.05139911,125.79,125.76,238.53712032]
[1741800175884,8.00269911,125.79,125.76,238.53712032]
[1741800176491,0.05139911,125.79,125.76,238.53712032]
[1741800178696,7.9524,125.77,125.76,238.53712032]
[1741800181589,32.75710882,125.77,125.68,238.5]
[1741800181793,7.9572,125.7,125.68,238.5]
[1741800181996,68.19710882,125.77,125.68,273.94]
[1741800182393,7.9553,125.73,125.68,273.94]
[1741800182696,7.9553,125.73,125.68,281.8977]
[1741800182897,0.0588312,125.72,125.69,0.0545841]
[1741800183498,8.0149312,125.72,125.69,0.0545841]
[1741800184099,0.0588312,125.72,125.69,0.0545841]
[1741800185808,6.1015,125.78,125.7,7.9565]
[1741800186008,7.9536,125.76,125.7,7.9565]
[1741800186407,7.9536,125.76,125.71,7.9561]
[1741800186606,7.9536,125.76,125.72,35.24]
[1741800187005,0.05356243,125.75,125.73,0.05553669]
[1741800187198,6.081,125.8,125.73,0.05553669]
[1741800187403,0.0543783,125.75,125.73,0.05553669]
[1741800187602,7.9537,125.75,125.73,0.05553669]
[1741800187811,8.00998841,125.75,125.73,0.05553669]
[1741800188110,0.05628841,125.75,125.73,0.05553669]
[1741800190214,32.75710882,125.83,125.73,35.98634551]
[1741800190515,3.2347,125.82,125.73,3.1737]
[1741800191115,7.9508,125.8,125.75,7.9533]
[1741800191315,0.04726424,125.79,125.76,35.11255483]
[1741800192316,0.04726424,125.79,125.76,43.06545483]
[1741800192915,0.04726424,125.79,125.76,35.11255483]
[1741800194717,0.04726424,125.79,125.76,0.05255483]
[1741800195021,20.48718133,125.78,125.76,0.05255483]
[1741800195224,28.43928133,125.78,125.76,0.05255483]
[1741800195422,20.48718133,125.78,125.76,0.05255483]
[1741800195625,6.41556424,125.79,125.76,0.05255483]
[1741800196125,0.04726424,125.79,125.76,0.05255483]
[1741800196325,0.04726424,125.79,125.76,8.00495483]
[1741800196627,0.04726424,125.79,125.76,0.05255483]
[1741800197023,0.04726424,125.79,125.77,7.9523]
[1741800197828,0.04726424,125.79,125.76,8.00535483]
[1741800198234,0.04726424,125.79,125.76,0.05255483]
[1741800198421,0.04726424,125.79,125.77,7.9524]
[1741800198625,0.04726424,125.79,125.76,0.05255483]
[1741800199534,7.9518,125.78,125.76,0.05255483]
[1741800200129,7.9524,125.77,125.76,0.05255483]
[1741800200531,32.8243976,125.79,125.76,0.05255483]
[1741800200833,7.9522,125.78,125.76,0.05255483]
[1741800201234,0.04726424,125.79,125.76,0.05255483]
[1741800202230,7.99906424,125.79,125.76,0.05255483]
[1741800202635,0.04726424,125.79,125.76,0.05255483]
[1741800202931,7.9524,125.77,125.76,0.05255483]
[1741800204438,32.8243976,125.79,125.7,238.56]
[1741800204636,7.9546,125.74,125.71,34.54]
[1741800205245,32.77713336,125.79,125.72,7.9556]
[1741800205429,32.77713336,125.79,125.71,34.54]
[1741800205631,7.9542,125.75,125.74,0.05676084]
[1741800207739,32.77713336,125.75,125.7,238.56]
[1741800207933,32.77713336,125.73,125.64,332.00911979]
[1741800208134,7.9579,125.69,125.65,88.08209294]
[1741800208332,67.19713336,125.73,125.65,88.08209294]
[1741800208635,67.19713336,125.73,125.66,7.9591]
[1741800208837,0.05793118,125.7,125.68,0.05272155]
[1741800209333,7.9575,125.69,125.68,0.05272155]
[1741800209740,0.05793118,125.7,125.68,0.05272155]
[1741800210735,0.05793118,125.7,125.68,8.01062155]
[1741800210932,0.05793118,125.7,125.68,0.05272155]
[1741800211332,0.05793118,125.7,125.69,42.3375]
[1741800211537,42.3333,125.76,125.69,34.38]
[1741800211739,7.9533,125.76,125.69,37.4691]
[1741800212048,7.9532,125.76,125.69,37.4691]
[1741800212542,2.9785,125.78,125.69,37.4691]
[1741800212747,0.05285629,125.74,125.71,0.05374958]
[1741800213043,3.1908,125.79,125.71,0.05374958]
[1741800213242,3.1908,125.79,125.72,34.36]
[1741800213641,7.9528,125.77,125.72,34.36]
[1741800214048,3.1908,125.79,125.72,34.36]
[1741800214244,0.04579244,125.76,125.73,0.05886762]
[1741800214946,7.99929244,125.76,125.73,8.01346762]
[1741800216043,7.9539,125.75,125.73,0.05886762]
[1741800216241,0.04579244,125.76,125.73,0.05886762]
[1741800216747,7.9537,125.75,125.73,0.05886762]
[1741800217647,0.04579244,125.76,125.73,0.05886762]
[1741800218049,7.99929244,125.76,125.73,0.05886762]
[1741800218243,0.04579244,125.76,125.73,0.05886762]
[1741800218750,7.9541,125.75,125.73,0.05886762]
[1741800219453,0.04579244,125.76,125.73,0.05886762]
[1741800219648,7.99909244,125.76,125.73,0.05886762]
[1741800219948,7.99909244,125.76,125.73,8.01346762]
[1741800220145,7.99909244,125.76,125.73,0.05886762]
[1741800220649,0.04579244,125.76,125.73,0.05886762]
[1741800220850,7.99889244,125.76,125.73,0.05886762]
[1741800221053,0.04579244,125.76,125.73,0.05886762]
[1741800221251,7.99889244,125.76,125.73,0.05886762]
[1741800221858,0.04579244,125.76,125.73,0.05886762]
[1741800222250,0.04579244,125.76,125.74,7.9539]
[1741800222650,0.04579244,125.76,125.73,0.05886762]
[1741800223049,7.99889244,125.76,125.73,8.01326762]
[1741800223451,0.04579244,125.76,125.73,8.01326762]
[1741800223652,7.99909244,125.76,125.73,8.01326762]
[1741800223852,0.04579244,125.76,125.73,8.01326762]
[1741800224156,0.04579244,125.76,125.73,0.05886762]
[1741800224755,7.9543,125.74,125.73,0.05886762]
[1741800225051,0.04579244,125.76,125.73,34.77886762]
[1741800225255,20.50183461,125.83,125.74,20.50183461]
[1741800225658,7.9506,125.8,125.75,7.9532]
[1741800226155,7.9506,125.8,125.73,34.72]
[1741800226359,7.9506,125.8,125.76,0.05277462]
[1741800226756,31.58793461,125.81,125.76,8.00577462]
[1741800227055,23.63773461,125.81,125.76,0.05277462]
[1741800227255,7.9515,125.79,125.76,0.05277462]
[1741800227450,28.45333461,125.79,125.76,0.05277462]
[1741800228056,20.50183461,125.79,125.73,34.72]
[1741800228253,20.50183461,125.79,125.72,238.62]
[1741800228450,7.9529,125.77,125.72,246.5753]
[1741800228647,28.45473461,125.77,125.72,246.5753]
[1741800229256,28.45473461,125.77,125.73,0.06115404]
[1741800229257,8.00577462,125.76,125.73,0.06115404]
[1741800229758,0.05277462,125.76,125.73,0.06115404]
[1741800230355,11.17937462,125.76,125.73,0.06115404]
[1741800230760,3.22587462,125.76,125.73,0.06115404]
[1741800231160,3.22587462,125.76,125.73,8.01565404]
[1741800231353,3.22587462,125.76,125.73,0.06115404]